[Event "Gibraltar Masters 18th Play-Off"]
[Site "Gibraltar"]
[Date "2020.01.30"]
[Round "1.2"]
[White "Paravyan, David"]
[Black "Esipenko, Andrey"]
[Result "1/2-1/2"]
[ECO "B13"]
[WhiteElo "2629"]
[BlackElo "2654"]
[PlyCount "53"]
[EventDate "2020.01.30"]
[EventType "k.o. (rapid)"]
[EventCountry "GGB"]
[SourceTitle "BritBase"]
[Source "John Saunders"]
[SourceDate "2021.06.05"]
[SourceVersion "1"]
[SourceVersionDate "2021.06.05"]
[SourceQuality "1"]
[TimeControl "40/100:0"]
[WhiteClock "0:02:30"]
[BlackClock "0:00:47"]

1. e4 {[%emt 0:00:00]} c6 {[%emt 0:00:00]} 2. d4 {[%emt 0:00:00]} d5 {[%emt 0:
00:00]} 3. exd5 {[%emt 0:00:00]} cxd5 {[%emt 0:00:00]} 4. Nf3 {[%emt 0:00:00]}
Nf6 {[%emt 0:00:00]} 5. c3 {[%emt 0:00:00]} Nc6 {[%emt 0:00:00]} 6. Bf4 {
[%emt 0:00:00]} Bg4 {[%emt 0:00:00]} 7. Qb3 {[%emt 0:00:00]} Qc8 {[%emt 0:00:
00]} 8. Nbd2 {[%emt 0:00:00]} e6 {[%emt 0:00:00]} 9. Ne5 {[%emt 0:00:00]} Be7 {
[%emt 0:00:00]} 10. Nxg4 {[%emt 0:00:00]} Nxg4 {[%emt 0:00:00]} 11. Bd3 {
[%emt 0:00:00]} O-O {[%emt 0:00:00]} 12. O-O {[%emt 0:00:00]} Nf6 {[%emt 0:00:
00]} 13. h3 {[%emt 0:00:00]} a6 {[%emt 0:00:00]} 14. a4 {[%emt 0:00:00]} Qd7 {
[%emt 0:00:00]} 15. Rfe1 {[%emt 0:00:00]} Bd6 {[%emt 0:00:00]} 16. Be5 {
[%emt 0:00:00]} Bxe5 {[%emt 0:00:00]} 17. dxe5 {[%emt 0:00:00]} Nh5 {[%emt 0:
00:00]} 18. g3 {[%emt 0:00:00]} g6 {[%emt 0:00:00]} 19. Nf3 {[%emt 0:00:00]}
Rac8 {[%emt 0:00:00]} 20. a5 {[%emt 0:00:00]} Rce8 {[%emt 0:00:00]} 21. c4 {
[%emt 0:00:00]} dxc4 {[%emt 0:00:00]} 22. Qxc4 {[%emt 0:00:00]} Rc8 {[%emt 0:
00:00]} 23. Qb3 {[%emt 0:00:00]} Nd4 {[%emt 0:00:00]} 24. Nxd4 {[%emt 0:00:00]}
Qxd4 {[%emt 0:00:00]} 25. Be4 {[%emt 0:00:00]} Rc4 {[%emt 0:00:17]} 26. Qe3 {
[%emt 0:00:00]} Qxb2 {[%emt 0:00:36]} 27. Bg2 {[%emt 0:00:00]} 1/2-1/2

[Event "Gibraltar Masters 18th Play-Off"]
[Site "Gibraltar"]
[Date "2020.01.30"]
[Round "1.2"]
[White "Wang, Hao"]
[Black "Yuffa, Daniil"]
[Result "1-0"]
[ECO "E94"]
[WhiteElo "2758"]
[BlackElo "2566"]
[PlyCount "73"]
[EventDate "2020.01.30"]
[EventType "k.o. (rapid)"]
[EventCountry "GGB"]
[SourceTitle "BritBase"]
[Source "John Saunders"]
[SourceDate "2021.06.05"]
[SourceVersion "1"]
[SourceVersionDate "2021.06.05"]
[SourceQuality "1"]
[TimeControl "40/100:0"]
[WhiteClock "0:02:49"]
[BlackClock "0:00:59"]

1. Nf3 {[%emt 0:00:00]} d6 {[%emt 0:00:00]} 2. d4 {[%emt 0:00:00]} Nf6 {
[%emt 0:00:00]} 3. c4 {[%emt 0:00:00]} g6 {[%emt 0:00:00]} 4. Nc3 {[%emt 0:00:
00]} Bg7 {[%emt 0:00:00]} 5. e4 {[%emt 0:00:00]} O-O {[%emt 0:00:00]} 6. Be2 {
[%emt 0:00:00]} Nbd7 {[%emt 0:00:00]} 7. O-O {[%emt 0:00:00]} e5 {[%emt 0:00:
00]} 8. Be3 {[%emt 0:00:00]} Re8 {[%emt 0:00:00]} 9. d5 {[%emt 0:00:00]} Nh5 {
[%emt 0:00:00]} 10. g3 {[%emt 0:00:00]} Bf8 {[%emt 0:00:00]} 11. Ne1 {[%emt 0:
00:00]} Ng7 {[%emt 0:00:00]} 12. Nd3 {[%emt 0:00:00]} f5 {[%emt 0:00:00]} 13.
Qd2 {[%emt 0:00:00]} Nf6 {[%emt 0:00:00]} 14. f3 {[%emt 0:00:00]} Be7 {[%emt 0:
00:00]} 15. exf5 {[%emt 0:00:00]} Nxf5 {[%emt 0:00:00]} 16. Bf2 {[%emt 0:00:00]
} Bf8 {[%emt 0:00:00]} 17. Rfe1 {[%emt 0:00:00]} Bh6 {[%emt 0:00:00]} 18. Qd1 {
[%emt 0:00:00]} Be3 {[%emt 0:00:00]} 19. Bf1 {[%emt 0:00:00]} Bxf2+ {[%emt 0:
00:00]} 20. Nxf2 {[%emt 0:00:00]} Bd7 {[%emt 0:00:00]} 21. Bg2 {[%emt 0:00:00]}
a6 {[%emt 0:00:00]} 22. Rc1 {[%emt 0:00:00]} b5 {[%emt 0:00:00]} 23. Nce4 {
[%emt 0:00:00]} Nxe4 {[%emt 0:00:00]} 24. Nxe4 {[%emt 0:00:00]} Nd4 {[%emt 0:
00:00]} 25. f4 {[%emt 0:00:00]} bxc4 {[%emt 0:00:00]} 26. fxe5 {[%emt 0:00:00]}
dxe5 {[%emt 0:00:00]} 27. Rxc4 {[%emt 0:00:00]} Bf5 {[%emt 0:00:00]} 28. Qc1 {
[%emt 0:00:00]} Re7 {[%emt 0:00:00]} 29. d6 {[%emt 0:00:00]} cxd6 {[%emt 0:00:
00]} 30. Nxd6 {[%emt 0:00:00]} Qxd6 {[%emt 0:00:00]} 31. Bxa8 {[%emt 0:00:00]}
e4 {[%emt 0:00:00]} 32. Rd1 {[%emt 0:00:00]} Ne2+ {[%emt 0:00:00]} 33. Kf2 {
[%emt 0:00:00]} e3+ {[%emt 0:00:09]} 34. Kxe2 {[%emt 0:00:00]} Qf6 {[%emt 0:00:
39]} 35. Bd5+ {[%emt 0:00:00]} Kg7 {[%emt 0:00:00]} 36. Qc3 {[%emt 0:00:00]}
Re5 {[%emt 0:00:00]} 37. Bf3 {[%emt 0:00:00]} 1-0

[Event "Gibraltar Masters 18th Play-Off"]
[Site "Gibraltar"]
[Date "2020.01.30"]
[Round "1.3"]
[White "Paravyan, David"]
[Black "Esipenko, Andrey"]
[Result "1/2-1/2"]
[ECO "B12"]
[WhiteElo "2629"]
[BlackElo "2654"]
[PlyCount "113"]
[EventDate "2020.01.30"]
[EventType "k.o. (rapid)"]
[EventCountry "GGB"]
[SourceTitle "BritBase"]
[Source "John Saunders"]
[SourceDate "2021.06.05"]
[SourceVersion "1"]
[SourceVersionDate "2021.06.05"]
[SourceQuality "1"]
[TimeControl "40/100:0"]
[WhiteClock "0:00:10"]
[BlackClock "0:00:12"]

1. e4 {[%emt 0:00:00]} c6 {[%emt 0:00:00]} 2. d4 {[%emt 0:00:00]} d5 {[%emt 0:
00:00]} 3. e5 {[%emt 0:00:00]} Bf5 {[%emt 0:00:00]} 4. Nf3 {[%emt 0:00:02]} e6
5. c3 {[%emt 0:00:00]} c5 {[%emt 0:00:00]} 6. Bb5+ {[%emt 0:00:00]} Nd7 {
[%emt 0:00:00]} 7. Be3 {[%emt 0:00:00]} Rc8 {[%emt 0:00:00]} 8. O-O {[%emt 0:
00:00]} a6 {[%emt 0:00:00]} 9. Be2 {[%emt 0:00:00]} Ne7 {[%emt 0:00:00]} 10.
Nbd2 {[%emt 0:00:00]} Nc6 {[%emt 0:00:00]} 11. a3 {[%emt 0:00:00]} Be7 {
[%emt 0:00:00]} 12. b4 {[%emt 0:00:00]} cxd4 {[%emt 0:00:00]} 13. cxd4 {
[%emt 0:00:00]} O-O {[%emt 0:00:00]} 14. Nb3 {[%emt 0:00:00]} Nxb4 {[%emt 0:00:
00]} 15. axb4 {[%emt 0:00:00]} Bc2 {[%emt 0:00:00]} 16. Qd2 {[%emt 0:00:00]}
Bxb3 {[%emt 0:00:00]} 17. b5 {[%emt 0:00:00]} axb5 {[%emt 0:00:00]} 18. Bxb5 {
[%emt 0:00:00]} Bc4 {[%emt 0:00:00]} 19. Rfb1 {[%emt 0:00:00]} Bxb5 {[%emt 0:
00:00]} 20. Rxb5 {[%emt 0:00:00]} b6 {[%emt 0:00:00]} 21. Qd1 {[%emt 0:00:16]}
Qc7 {[%emt 0:00:00]} 22. Rc1 {[%emt 0:00:00]} Qb7 {[%emt 0:00:00]} 23. Rcb1 {
[%emt 0:00:01]} Rc3 {[%emt 0:00:00]} 24. h4 {[%emt 0:00:00]} Rfc8 {[%emt 0:00:
06]} 25. h5 {[%emt 0:00:00]} h6 {[%emt 0:00:06]} 26. g4 {[%emt 0:00:18]} Qc6 {
[%emt 0:00:08]} 27. Kg2 {[%emt 0:00:04]} Qc4 {[%emt 0:00:06]} 28. R5b2 {
[%emt 0:00:15]} Ra8 {[%emt 0:00:16]} 29. Bd2 {[%emt 0:00:24]} Rca3 {[%emt 0:00:
00]} 30. Rc1 {[%emt 0:00:06]} Qd3 {[%emt 0:00:00]} 31. Be3 {[%emt 0:00:07]} Qe4
{[%emt 0:00:08]} 32. Kg3 {[%emt 0:00:00]} f6 {[%emt 0:00:06]} 33. Rc7 {[%emt 0:
00:00]} R3a7 {[%emt 0:00:00]} 34. Rxa7 {[%emt 0:00:02]} Rxa7 {[%emt 0:00:00]}
35. Qc2 {[%emt 0:00:01]} Qxc2 {[%emt 0:00:23]} 36. Rxc2 {[%emt 0:00:00]} b5 {
[%emt 0:00:08]} 37. exf6 {[%emt 0:00:00]} Bxf6 {[%emt 0:00:02]} 38. g5 {
[%emt 0:00:00]} hxg5 {[%emt 0:00:00]} 39. Nxg5 {[%emt 0:00:00]} Bxg5 {[%emt 0:
00:00]} 40. Bxg5 {[%emt 0:00:00]} Rb7 {[%emt 0:00:02]} 41. Kf3 {[%emt 0:01:40]}
b4 {[%emt 0:01:40]} 42. Ke2 {[%emt 0:00:00]} b3 {[%emt 0:00:00]} 43. Rb2 {
[%emt 0:00:00]} e5 {[%emt 0:00:01]} 44. Kd3 {[%emt 0:00:00]} Rb4 {[%emt 0:00:
03]} 45. Be3 {[%emt 0:00:00]} exd4 {[%emt 0:00:02]} 46. Bxd4 {[%emt 0:00:00]}
Nf6 {[%emt 0:00:00]} 47. h6 {[%emt 0:00:00]} Kf7 {[%emt 0:00:00]} 48. hxg7 {
[%emt 0:00:00]} Kxg7 {[%emt 0:00:00]} 49. Kc3 {[%emt 0:00:00]} Rb7 {[%emt 0:00:
00]} 50. Rxb3 {[%emt 0:00:03]} Rxb3+ {[%emt 0:00:00]} 51. Kxb3 {[%emt 0:00:00]}
Kg6 {[%emt 0:00:00]} 52. f3 {[%emt 0:00:00]} Kf5 {[%emt 0:00:00]} 53. Bxf6 {
[%emt 0:00:00]} Kxf6 {[%emt 0:00:00]} 54. Kc3 {[%emt 0:00:00]} Ke5 {[%emt 0:00:
00]} 55. f4+ {[%emt 0:00:00]} Kxf4 {[%emt 0:00:00]} 56. Kd4 {[%emt 0:00:00]}
Kf5 {[%emt 0:00:00]} 57. Kxd5 1/2-1/2

[Event "Gibraltar Masters 18th Play-Off"]
[Site "Gibraltar"]
[Date "2020.01.30"]
[Round "1.4"]
[White "Esipenko, Andrey"]
[Black "Paravyan, David"]
[Result "1/2-1/2"]
[ECO "E11"]
[WhiteElo "2654"]
[BlackElo "2629"]
[PlyCount "86"]
[EventDate "2020.01.30"]
[EventType "k.o. (rapid)"]
[EventCountry "GGB"]
[SourceTitle "BritBase"]
[Source "John Saunders"]
[SourceDate "2021.06.05"]
[SourceVersion "1"]
[SourceVersionDate "2021.06.05"]
[SourceQuality "1"]
[TimeControl "40/100:0"]
[WhiteClock "0:00:03"]
[BlackClock "0:00:11"]

1. d4 {[%emt 0:00:00]} Nf6 {[%emt 0:00:00]} 2. Nf3 {[%emt 0:00:00]} d5 {
[%emt 0:00:00]} 3. c4 {[%emt 0:00:00]} e6 {[%emt 0:00:00]} 4. g3 {[%emt 0:00:
00]} Bb4+ {[%emt 0:00:00]} 5. Bd2 {[%emt 0:00:00]} a5 {[%emt 0:00:00]} 6. Bg2 {
[%emt 0:00:00]} O-O {[%emt 0:00:00]} 7. Qc2 {[%emt 0:00:00]} c5 {[%emt 0:00:00]
} 8. dxc5 {[%emt 0:00:00]} d4 {[%emt 0:00:00]} 9. Bxb4 {[%emt 0:00:00]} axb4 {
[%emt 0:00:00]} 10. Nbd2 {[%emt 0:00:00]} Nc6 {[%emt 0:00:00]} 11. Nb3 {
[%emt 0:00:00]} e5 {[%emt 0:00:00]} 12. O-O {[%emt 0:00:00]} Qe7 {[%emt 0:00:
00]} 13. Ng5 {[%emt 0:00:00]} Bg4 {[%emt 0:00:00]} 14. Rfe1 {[%emt 0:00:00]}
Rfd8 {[%emt 0:00:00]} 15. Ne4 {[%emt 0:00:00]} Ne8 {[%emt 0:00:00]} 16. h3 {
[%emt 0:00:04]} Bh5 {[%emt 0:00:00]} 17. e3 {[%emt 0:00:38]} d3 {[%emt 0:00:00]
} 18. Qd2 {[%emt 0:00:00]} f5 {[%emt 0:00:00]} 19. Nd6 {[%emt 0:00:00]} Nxd6 {
[%emt 0:00:00]} 20. cxd6 {[%emt 0:00:00]} Qxd6 {[%emt 0:00:00]} 21. Bd5+ {
[%emt 0:00:00]} Bf7 {[%emt 0:00:00]} 22. e4 {[%emt 0:00:15]} fxe4 {[%emt 0:00:
13]} 23. Bxf7+ {[%emt 0:00:00]} Kxf7 {[%emt 0:00:00]} 24. Rxe4 {[%emt 0:00:00]}
Kg8 {[%emt 0:00:08]} 25. Kg2 {[%emt 0:00:00]} Qg6 {[%emt 0:00:19]} 26. f3 {
[%emt 0:00:05]} Ne7 {[%emt 0:00:11]} 27. Rxe5 {[%emt 0:00:06]} Nf5 {[%emt 0:00:
00]} 28. g4 {[%emt 0:00:13]} Nh4+ {[%emt 0:00:01]} 29. Kg3 {[%emt 0:00:00]} Qf6
{[%emt 0:00:12]} 30. f4 {[%emt 0:00:00]} Ng6 {[%emt 0:00:06]} 31. Re4 {[%emt 0:
00:00]} h5 {[%emt 0:00:05]} 32. f5 {[%emt 0:00:10]} Qd6+ {[%emt 0:00:01]} 33.
Kg2 {[%emt 0:00:00]} Nh4+ {[%emt 0:00:00]} 34. Kh1 {[%emt 0:00:00]} Qc6 {
[%emt 0:00:13]} 35. Qe3 {[%emt 0:00:01]} d2 {[%emt 0:00:03]} 36. Rd1 {[%emt 0:
00:00]} Rxa2 {[%emt 0:00:01]} 37. Nd4 {[%emt 0:00:00]} Qxc4 {[%emt 0:00:03]}
38. Re8+ {[%emt 0:00:00]} Rxe8 {[%emt 0:00:00]} 39. Qxe8+ {[%emt 0:00:02]} Kh7
40. Qxh5+ {[%emt 0:00:00]} Kg8 {[%emt 0:00:00]} 41. Qe8+ {[%emt 0:00:02]} Kh7 {
[%emt 0:01:36]} 42. Qh5+ {[%emt 0:01:39]} Kg8 {[%emt 0:00:00]} 43. Qe8+ {
[%emt 0:00:02]} Kh7 {[%emt 0:00:00]} 1/2-1/2

[Event "Gibraltar Masters 18th Play-Off"]
[Site "Gibraltar"]
[Date "2020.01.30"]
[Round "1.5"]
[White "Paravyan, David"]
[Black "Esipenko, Andrey"]
[Result "1-0"]
[ECO "B12"]
[WhiteElo "2629"]
[BlackElo "2654"]
[PlyCount "115"]
[EventDate "2020.01.30"]
[EventType "k.o. (rapid)"]
[EventCountry "GGB"]
[SourceTitle "BritBase"]
[Source "John Saunders"]
[SourceDate "2021.06.05"]
[SourceVersion "1"]
[SourceVersionDate "2021.06.05"]
[SourceQuality "1"]
[TimeControl "40/100:0"]
[WhiteClock "0:00:16"]
[BlackClock "0:00:01"]

1. e4 {[%emt 0:03:46]} c6 2. d4 {[%emt 0:00:01]} d5 3. e5 {[%emt 0:00:00]} Bf5
{[%emt 0:00:00]} 4. c4 {[%emt 0:00:00]} e6 {[%emt 0:00:00]} 5. Nc3 {[%emt 0:00:
00]} Nd7 {[%emt 0:00:00]} 6. Nf3 {[%emt 0:00:00]} dxc4 {[%emt 0:00:00]} 7. Bxc4
{[%emt 0:00:01]} Ne7 8. Nh4 {[%emt 0:00:00]} Bg6 {[%emt 0:00:00]} 9. O-O {
[%emt 0:00:00]} Nd5 {[%emt 0:00:00]} 10. Nxg6 {[%emt 0:00:00]} hxg6 {[%emt 0:
00:00]} 11. Nxd5 {[%emt 0:00:00]} cxd5 {[%emt 0:00:00]} 12. Bb5 {[%emt 0:00:00]
} a6 {[%emt 0:00:00]} 13. Ba4 {[%emt 0:00:00]} Be7 {[%emt 0:00:00]} 14. Be3 {
[%emt 0:00:00]} b5 {[%emt 0:00:00]} 15. Bc2 {[%emt 0:00:00]} g5 {[%emt 0:00:00]
} 16. g3 {[%emt 0:00:00]} g6 {[%emt 0:00:00]} 17. Bd3 {[%emt 0:00:00]} Rc8 {
[%emt 0:00:00]} 18. a4 {[%emt 0:00:00]} Qb6 {[%emt 0:00:00]} 19. Qe2 {[%emt 0:
00:00]} Rb8 {[%emt 0:00:00]} 20. axb5 {[%emt 0:00:00]} axb5 {[%emt 0:00:00]}
21. Qd2 {[%emt 0:00:00]} Kf8 {[%emt 0:00:00]} 22. Ra5 {[%emt 0:00:00]} Qd8 {
[%emt 0:00:00]} 23. Rxb5 {[%emt 0:00:00]} Kg7 {[%emt 0:00:00]} 24. Ra1 {
[%emt 0:00:00]} Nb6 {[%emt 0:00:00]} 25. b3 {[%emt 0:00:00]} Nd7 {[%emt 0:00:
00]} 26. Ra7 {[%emt 0:00:00]} Ra8 {[%emt 0:00:00]} 27. Qa2 {[%emt 0:00:00]}
Rxa7 {[%emt 0:00:00]} 28. Qxa7 {[%emt 0:00:00]} Qc8 {[%emt 0:00:00]} 29. Rb7 {
[%emt 0:00:00]} Qc3 {[%emt 0:00:16]} 30. Bf1 {[%emt 0:00:00]} Bc5 {[%emt 0:00:
12]} 31. Qa2 {[%emt 0:00:00]} Nxe5 {[%emt 0:00:21]} 32. dxe5 {[%emt 0:00:00]}
Bxe3 {[%emt 0:00:09]} 33. fxe3 {[%emt 0:00:00]} Qxe5 {[%emt 0:00:01]} 34. Qf2 {
[%emt 0:00:00]} Rf8 {[%emt 0:00:00]} 35. b4 {[%emt 0:00:00]} Kg8 {[%emt 0:00:
01]} 36. b5 {[%emt 0:00:00]} f5 {[%emt 0:00:01]} 37. Qd2 {[%emt 0:00:00]} Qd6 {
[%emt 0:00:09]} 38. Qd4 {[%emt 0:00:00]} Rf7 {[%emt 0:00:14]} 39. Rxf7 {
[%emt 0:00:00]} Kxf7 {[%emt 0:00:00]} 40. b6 {[%emt 0:00:02]} e5 41. Qb2 Qc5
42. Qxe5 {[%emt 0:00:00]} Qxb6 {[%emt 0:01:42]} 43. Qxd5+ {[%emt 0:00:00]} Kf8
{[%emt 0:00:01]} 44. Qe5 {[%emt 0:00:00]} Qc6 {[%emt 0:00:06]} 45. Kf2 {
[%emt 0:00:00]} Qc2+ {[%emt 0:00:00]} 46. Be2 {[%emt 0:00:00]} Qc6 {[%emt 0:00:
01]} 47. Qb8+ {[%emt 0:00:00]} Kg7 {[%emt 0:00:00]} 48. Qa7+ {[%emt 0:00:00]}
Kh6 {[%emt 0:00:01]} 49. Qd4 {[%emt 0:00:00]} Kh7 {[%emt 0:00:00]} 50. Bf3 {
[%emt 0:00:04]} Qc2+ 51. Be2 {[%emt 0:00:01]} Qc6 52. Qe5 {[%emt 0:00:00]} Qh1
{[%emt 0:00:01]} 53. Qe7+ {[%emt 0:00:00]} Kh6 {[%emt 0:00:01]} 54. Qf8+ Kh7
55. Qf7+ {[%emt 0:00:00]} Kh6 {[%emt 0:00:00]} 56. Bf3 {[%emt 0:00:00]} Qxh2+ {
[%emt 0:00:01]} 57. Bg2 {[%emt 0:00:00]} Qh5 {[%emt 0:00:01]} 58. Qg8 {[%emt 0:
00:00]} 1-0

[Event "Gibraltar Masters 18th Play-Off"]
[Site "Gibraltar"]
[Date "2020.01.30"]
[Round "2.1"]
[White "Wang, Hao"]
[Black "Paravyan, David"]
[Result "0-1"]
[ECO "C65"]
[WhiteElo "2758"]
[BlackElo "2629"]
[PlyCount "94"]
[EventDate "2020.01.30"]
[EventType "k.o. (rapid)"]
[EventCountry "GGB"]
[SourceTitle "BritBase"]
[Source "John Saunders"]
[SourceDate "2021.06.05"]
[SourceVersion "1"]
[SourceVersionDate "2021.06.05"]
[SourceQuality "1"]
[TimeControl "40/100:0"]
[WhiteClock "0:00:15"]
[BlackClock "0:00:20"]

1. e4 {[%emt 0:00:00]} e5 {[%emt 0:00:00]} 2. Nf3 {[%emt 0:00:00]} Nc6 {
[%emt 0:00:00]} 3. Bb5 {[%emt 0:00:00]} Nf6 {[%emt 0:00:00]} 4. d3 {[%emt 0:00:
00]} Bc5 {[%emt 0:00:00]} 5. Bxc6 {[%emt 0:00:00]} dxc6 {[%emt 0:00:00]} 6. O-O
{[%emt 0:00:00]} Nd7 {[%emt 0:00:00]} 7. c3 {[%emt 0:00:00]} O-O {[%emt 0:00:
00]} 8. d4 {[%emt 0:00:00]} Bd6 {[%emt 0:00:00]} 9. Bg5 {[%emt 0:00:00]} f6 {
[%emt 0:00:00]} 10. Bh4 {[%emt 0:00:00]} c5 {[%emt 0:00:00]} 11. Bg3 {[%emt 0:
00:00]} Qe7 {[%emt 0:00:00]} 12. dxe5 {[%emt 0:00:00]} fxe5 {[%emt 0:00:00]}
13. Nbd2 {[%emt 0:00:00]} Nb6 {[%emt 0:00:00]} 14. Qe2 {[%emt 0:00:00]} Bg4 {
[%emt 0:00:00]} 15. h3 {[%emt 0:00:00]} Bh5 {[%emt 0:00:00]} 16. Rfe1 {[%emt 0:
00:00]} Kh8 {[%emt 0:00:00]} 17. Qe3 {[%emt 0:00:00]} h6 {[%emt 0:00:00]} 18.
Nh4 {[%emt 0:00:00]} Qf6 {[%emt 0:00:00]} 19. Nf5 {[%emt 0:00:00]} Bg6 {
[%emt 0:00:00]} 20. Bh4 {[%emt 0:00:00]} Qe6 {[%emt 0:00:00]} 21. g4 {[%emt 0:
00:00]} a5 {[%emt 0:00:00]} 22. Nf3 {[%emt 0:00:00]} a4 {[%emt 0:00:00]} 23.
Rad1 {[%emt 0:00:00]} Qxa2 {[%emt 0:00:00]} 24. Nxh6 {[%emt 0:00:00]} Rxf3 {
[%emt 0:00:00]} 25. Qxf3 {[%emt 0:00:00]} gxh6 {[%emt 0:00:00]} 26. Qf6+ {
[%emt 0:00:00]} Kh7 {[%emt 0:00:00]} 27. Rxd6 {[%emt 0:00:00]} cxd6 {[%emt 0:
00:00]} 28. Qxd6 {[%emt 0:00:00]} Ra6 {[%emt 0:00:00]} 29. Qxe5 {[%emt 0:00:00]
} Nd7 {[%emt 0:00:00]} 30. Qc7 {[%emt 0:00:00]} Qf7 {[%emt 0:00:00]} 31. Rd1 {
[%emt 0:00:00]} Nf8 {[%emt 0:00:00]} 32. Qxf7+ {[%emt 0:00:00]} Bxf7 {[%emt 0:
00:00]} 33. f4 {[%emt 0:00:00]} a3 {[%emt 0:00:00]} 34. bxa3 {[%emt 0:00:00]}
Rxa3 {[%emt 0:00:00]} 35. Bf6 {[%emt 0:00:09]} Ra4 {[%emt 0:01:22]} 36. Re1 {
[%emt 0:01:11]} Nd7 {[%emt 0:00:04]} 37. Be7 {[%emt 0:00:00]} Rc4 {[%emt 0:00:
01]} 38. Re3 {[%emt 0:00:03]} b5 {[%emt 0:00:05]} 39. Kf2 {[%emt 0:00:00]} b4 {
[%emt 0:00:00]} 40. cxb4 {[%emt 0:00:00]} cxb4 {[%emt 0:00:00]} 41. Kf3 {
[%emt 0:01:36]} Nc5 {[%emt 0:01:34]} 42. e5 {[%emt 0:00:09]} Bd5+ {[%emt 0:00:
00]} 43. Kg3 {[%emt 0:00:00]} b3 {[%emt 0:00:00]} 44. Re2 {[%emt 0:00:00]} Rc2
{[%emt 0:00:00]} 45. Re1 {[%emt 0:00:00]} b2 {[%emt 0:00:00]} 46. Bxc5 {
[%emt 0:00:00]} Rxc5 {[%emt 0:00:00]} 47. Rb1 {[%emt 0:00:00]} Rb5 {[%emt 0:00:
00]} 0-1

[Event "Gibraltar Masters 18th Play-Off"]
[Site "Gibraltar"]
[Date "2020.01.30"]
[Round "2.2"]
[White "Paravyan, David"]
[Black "Wang, Hao"]
[Result "1/2-1/2"]
[ECO "B90"]
[WhiteElo "2629"]
[BlackElo "2758"]
[PlyCount "100"]
[EventDate "2020.01.30"]
[EventType "k.o. (rapid)"]
[EventCountry "GGB"]
[SourceTitle "BritBase"]
[Source "John Saunders"]
[SourceDate "2021.06.05"]
[SourceVersion "1"]
[SourceVersionDate "2021.06.05"]
[SourceQuality "1"]
[TimeControl "40/100:0"]
[WhiteClock "0:00:24"]
[BlackClock "0:00:20"]

1. e4 {[%emt 0:00:00]} c5 {[%emt 0:00:00]} 2. Nf3 {[%emt 0:00:00]} d6 {[%emt 0:
00:00]} 3. d4 {[%emt 0:00:00]} cxd4 {[%emt 0:00:00]} 4. Nxd4 {[%emt 0:00:00]}
Nf6 {[%emt 0:00:00]} 5. Nc3 {[%emt 0:00:00]} a6 {[%emt 0:00:00]} 6. Bd3 {
[%emt 0:00:00]} e5 {[%emt 0:00:00]} 7. Nde2 {[%emt 0:00:00]} Be7 {[%emt 0:00:
00]} 8. O-O {[%emt 0:00:00]} O-O {[%emt 0:00:00]} 9. Ng3 {[%emt 0:00:00]} Be6 {
[%emt 0:00:00]} 10. Nd5 {[%emt 0:00:00]} Nxd5 {[%emt 0:00:00]} 11. exd5 {
[%emt 0:00:00]} Bc8 {[%emt 0:00:00]} 12. f4 {[%emt 0:00:00]} Nd7 {[%emt 0:00:
00]} 13. Nf5 {[%emt 0:00:00]} Bf6 {[%emt 0:00:00]} 14. c3 {[%emt 0:00:00]} exf4
{[%emt 0:00:00]} 15. Bxf4 {[%emt 0:00:00]} Ne5 {[%emt 0:00:00]} 16. Kh1 {
[%emt 0:00:00]} Bxf5 {[%emt 0:00:00]} 17. Bxf5 {[%emt 0:00:00]} g6 {[%emt 0:00:
00]} 18. Bh3 {[%emt 0:00:00]} Re8 {[%emt 0:00:00]} 19. Rc1 {[%emt 0:00:00]} b5
{[%emt 0:00:00]} 20. a4 {[%emt 0:00:00]} Bg5 {[%emt 0:00:00]} 21. Bxe5 {
[%emt 0:00:00]} Rxe5 {[%emt 0:00:00]} 22. Ra1 {[%emt 0:00:00]} Qb6 {[%emt 0:00:
00]} 23. Bd7 {[%emt 0:00:00]} bxa4 {[%emt 0:00:00]} 24. Qc2 {[%emt 0:00:23]}
Rb8 {[%emt 0:00:00]} 25. Bxa4 {[%emt 0:00:00]} a5 {[%emt 0:00:00]} 26. b4 {
[%emt 0:00:04]} axb4 {[%emt 0:00:00]} 27. cxb4 {[%emt 0:00:00]} Be3 {[%emt 0:
00:00]} 28. Bc6 {[%emt 0:00:07]} Qd4 {[%emt 0:00:00]} 29. b5 {[%emt 0:00:12]}
Rh5 {[%emt 0:00:00]} 30. g3 {[%emt 0:00:05]} Qg4 {[%emt 0:00:00]} 31. Qg2 {
[%emt 0:00:24]} Qd4 {[%emt 0:00:08]} 32. Rad1 {[%emt 0:00:01]} Qc5 {[%emt 0:00:
04]} 33. Qf3 {[%emt 0:00:11]} Rf5 {[%emt 0:00:04]} 34. Qe2 {[%emt 0:00:00]} Re5
{[%emt 0:00:00]} 35. Qd3 {[%emt 0:00:03]} f5 {[%emt 0:00:01]} 36. Ra1 {[%emt 0:
00:02]} Rf8 {[%emt 0:00:00]} 37. Ra4 {[%emt 0:00:00]} Kg7 {[%emt 0:00:15]} 38.
Qc4 {[%emt 0:00:00]} Qb6 {[%emt 0:00:16]} 39. Ra6 {[%emt 0:00:00]} Qc7 {
[%emt 0:00:00]} 40. Qb4 {[%emt 0:00:00]} Rb8 {[%emt 0:00:16]} 41. Re1 {[%emt 0:
01:38]} Kf7 {[%emt 0:01:46]} 42. Qc4 {[%emt 0:00:02]} Qe7 {[%emt 0:00:00]} 43.
Ra2 {[%emt 0:00:00]} Re4 {[%emt 0:00:00]} 44. Qd3 {[%emt 0:00:00]} Bc5 {
[%emt 0:00:08]} 45. Rae2 {[%emt 0:00:00]} Rxe2 {[%emt 0:00:04]} 46. Qxe2 {
[%emt 0:00:00]} Qa7 {[%emt 0:00:10]} 47. Qe6+ {[%emt 0:00:00]} Kg7 {[%emt 0:00:
00]} 48. Qe7+ {[%emt 0:00:00]} Qxe7 {[%emt 0:00:00]} 49. Rxe7+ {[%emt 0:00:00]}
Kh6 {[%emt 0:00:00]} 50. Re8 {[%emt 0:00:00]} Rxe8 {[%emt 0:00:00]} 1/2-1/2